fUST/lending_fUST_20241202
["ID","MTS","AMOUNT","RATE_DAILY","PERIOD"]
[343952064,1733129451435,-500.0,0.00028493,7]
[343952065,1733129451444,-500.0,0.00028493,7]
[343952066,1733129451454,-500.0,0.00028493,7]
[343952067,1733129451463,-500.0,0.00028493,7]
[343952068,1733129451472,-1196.42,0.00028493,7]
[343952069,1733129451482,-500.0,0.00028493,7]
[343952070,1733129451491,-801.14,0.00028493,7]
[343952071,1733129451501,-500.0,0.00028493,7]
[343952072,1733129451510,-500.0,0.00028493,7]
[343952073,1733129451519,-500.0,0.00028493,7]
[343952074,1733129451528,-500.0,0.00028493,7]
[343952075,1733129451537,-500.0,0.00028493,7]
[343952076,1733129451546,-500.0,0.00028493,7]
[343952077,1733129451559,-500.0,0.00028493,7]
[343952078,1733129451569,-500.0,0.00028493,7]
[343952079,1733129451578,-1223.48,0.00028493,7]
[343952080,1733129451586,-500.0,0.00028493,7]
[343952081,1733129451597,-500.0,0.00028493,7]
[343952082,1733129451606,-500.0,0.00028493,7]
[343952083,1733129451616,-504.84,0.00028493,7]
[343952084,1733129451626,-500.0,0.00028493,7]
[343952085,1733129451635,-1609.24742335,0.00028497,2]
[343952086,1733129451644,-300.0,0.000285,2]
[343952087,1733129451654,-500.0,0.00028564,10]
[343952088,1733129451663,-151.0,0.00028594,6]
[343952089,1733129451673,-150.0,0.000286,2]
[343952090,1733129451682,-174.341765,0.00028633,2]
[343952091,1733129451692,-713.0,0.00028673,15]
[343952092,1733129451701,-500.0,0.00028767,7]
[343952093,1733129451710,-552.11291477,0.00028767,7]
[343952094,1733129451719,-500.0,0.00028767,4]
[343952095,1733129451729,-500.0,0.00028767,7]
[343952096,1733129451738,-500.0,0.00028767,7]
[343952097,1733129451747,-500.0,0.00028767,7]
[343952098,1733129451757,-500.0,0.00028767,7]
[343952099,1733129451766,-500.0,0.00028767,7]
[343952100,1733129451775,-500.0,0.00028767,7]
[343952101,1733129451784,-500.0,0.00028767,7]
[343952102,1733129451794,-500.0,0.00028767,7]
[343952103,1733129451803,-500.0,0.00028767,7]
[343952104,1733129451813,-500.0,0.00028767,7]
[343952105,1733129451823,-500.0,0.00028767,7]
[343952106,1733129451832,-350.00163885,0.00028767,7]
[343952107,1733129451841,-500.0,0.00028767,7]
[343952108,1733129451850,-500.0,0.00028767,7]
[343952109,1733129451860,-636.26014033,0.00028767,7]
[343952110,1733129451870,-500.0,0.00028767,7]
[343952111,1733129451879,-188.8,0.00028767,7]
[343952112,1733129451888,-500.0,0.00028767,7]
[343952113,1733129451897,-500.0,0.00028767,7]
[343952114,1733129451907,-500.0,0.00028767,7]
[343952115,1733129451916,-500.0,0.00028767,7]
[343952116,1733129451929,-833.33,0.00028767,7]
[343952117,1733129451938,-500.0,0.00028767,7]
[343952118,1733129451947,-500.0,0.00028767,7]
[343952119,1733129451956,-500.0,0.00028767,7]
[343952120,1733129451967,-500.0,0.00028767,7]
[343952121,1733129451976,-500.0,0.00028767,7]
[343952122,1733129451986,-643.33,0.00028767,7]
[343952123,1733129451996,-500.0,0.00028767,7]
[343952124,1733129452006,-500.0,0.00028767,7]
[343952125,1733129452015,-500.0,0.00028767,7]
[343952126,1733129452024,-500.0,0.00028767,7]
[343952127,1733129452033,-500.0,0.00028767,7]
[343952128,1733129452042,-500.0,0.00028767,7]
[343952129,1733129452055,-500.0,0.00028767,7]
[343952130,1733129452065,-500.0,0.00028767,7]
[343952131,1733129452075,-2628.17,0.00028767,7]
[343952132,1733129452085,-500.0,0.00028767,7]
[343952133,1733129452095,-500.0,0.00028767,7]
[343952134,1733129452104,-500.0,0.00028767,7]
[343952135,1733129452114,-500.0,0.00028767,7]
[343952136,1733129452123,-500.0,0.00028767,7]
[343952137,1733129452133,-13382.96,0.00028767,7]
[343952138,1733129452142,-500.0,0.00028767,7]
[343952139,1733129452152,-500.0,0.00028767,7]
[343952140,1733129452161,-500.0,0.00028767,7]
[343952141,1733129452170,-500.0,0.00028767,7]
[343952142,1733129452179,-500.0,0.00028767,7]
[343952143,1733129452189,-500.0,0.00028767,7]
[343952144,1733129452198,-500.0,0.00028767,7]
[343952145,1733129452208,-500.0,0.00028767,7]
[343952146,1733129452217,-626.13982976,0.00028767,7]
[343952147,1733129452227,-500.0,0.00028767,7]
[343952148,1733129452236,-500.0,0.00028767,7]
[343952149,1733129452245,-500.0,0.00028767,7]
[343952150,1733129452255,-1196.42,0.00028767,7]
[343952151,1733129452265,-801.14,0.00028767,7]
[343952152,1733129452274,-500.0,0.00028767,7]
[343952153,1733129452283,-500.0,0.00028767,7]
[343952154,1733129452292,-500.0,0.00028767,7]
[343952155,1733129452301,-257.51654877,0.00028767,7]
[343952156,1733129452311,-1223.48,0.00028767,7]
[343952157,1733129452320,-500.0,0.00028767,7]
[343952158,1733129452330,-500.0,0.00028767,7]
[343952159,1733129452338,-500.0,0.00028767,7]
[343952160,1733129452348,-160.9,0.00028767,7]
[343952161,1733129452357,-504.84,0.00028767,7]
[343952162,1733129452367,-453.78596,0.00028791,2]
[343952163,1733129452376,-156.186654,0.00028791,2]
[343952164,1733129452385,-312.373309,0.00028791,2]
[343952165,1733129452395,-160.402669,0.00028791,2]
[343952166,1733129452403,-1140.180447,0.00028791,2]
[343952167,1733129452413,-156.186654,0.00028791,2]
[343952168,1733129452422,-151.0,0.000288,19]
[343952169,1733129452432,-1609.24742335,0.00028805,2]
[343952170,1733129452441,-153.57546,0.00028909,2]
[343952171,1733129452451,-916.85742209,0.00028979,2]
[343952172,1733129452460,-9880.85074047,0.00028992,3]
[343952185,1733130105695,157.816051,0.00013973,2]
[343952318,1733130633858,-285.273,0.00023465,7]
[343952380,1733130638188,-269.65501596,0.00023465,7]
[343952381,1733130638198,-5000.0,0.00025,2]
[343952382,1733130638207,-172.627842,0.00025885,2]
[343952383,1733130638217,-500.0,0.00026,30]
[343952384,1733130638227,-300.0,0.00027294,2]
[343952385,1733130638236,-300.0,0.00027294,2]
[343952386,1733130638246,-396.0,0.00027294,2]
[343952387,1733130638255,-666.0,0.00027297,2]
[343952388,1733130638265,-1394.96714201,0.00027297,2]
[343952449,1733130640231,-4116.283,0.00027297,2]
[343952450,1733130640249,-985.34139693,0.00027297,2]
[343952451,1733130640261,-169.40846106,0.00027297,2]
[343952452,1733130640270,-486.52941,0.000273,2]
[343952453,1733130640280,-169.203,0.000273,16]
[343952454,1733130640290,-151.0,0.00027397,7]
[343952455,1733130640303,-151.0,0.00027397,7]
[343952456,1733130640313,-151.0,0.00027397,7]
[343952457,1733130640322,-151.0,0.00027397,7]
[343952458,1733130640331,-500.0,0.00027397,7]
[343952459,1733130640342,-500.0,0.00027397,7]
[343952460,1733130640352,-500.0,0.00027397,7]
[343952461,1733130640362,-500.0,0.00027397,7]
[343952462,1733130640371,-500.0,0.00027397,7]
[343952463,1733130640382,-500.0,0.00027397,7]
[343952464,1733130640393,-500.0,0.00027397,7]
[343952465,1733130640402,-282.05716843,0.00027397,7]
[343952466,1733130640411,-500.0,0.00027397,7]
[343952467,1733130640421,-625.0,0.00027397,7]
[343952468,1733130640432,-798.61,0.00027397,7]
[343952469,1733130640441,-500.0,0.00027397,7]
[343952473,1733130640524,-500.0,0.00027397,7]
[343952474,1733130640557,-580.60293112,0.00027397,7]
[343952475,1733130640567,-500.0,0.00027397,7]
[343952476,1733130640576,-300.31768039,0.00027397,2]
[343952503,1733130643140,-199.68231961,0.00027397,2]
[343952504,1733130643150,-500.0,0.00027397,7]
[343952505,1733130643159,-500.0,0.00027397,7]
[343952507,1733130643168,-500.0,0.00027397,7]
[343952509,1733130643178,-500.0,0.00027397,7]
[343952510,1733130643191,-384.73480572,0.00027397,7]
[343952511,1733130643200,-465.84965076,0.00027397,7]
[343952512,1733130643210,-205.63976974,0.00027397,7]
[343952513,1733130643219,-304.28806382,0.00027397,7]
[343952514,1733130643231,-195.71193618,0.00027397,7]
[343952516,1733130643240,-500.0,0.00027397,7]
[343952517,1733130643250,-500.0,0.00027397,7]
[343952518,1733130643260,-500.0,0.00027397,7]
[343952520,1733130643271,-500.0,0.00027397,7]
[343952522,1733130643280,-501.6309289,0.00027397,7]
[343952524,1733130643290,-500.0,0.00027397,7]
[343952526,1733130643300,-200.0,0.00027397,7]
[343952527,1733130643312,-500.0,0.00027397,7]
[343952530,1733130643322,-500.0,0.00027397,7]
[343952532,1733130643331,-500.0,0.00027397,7]
[343952534,1733130643340,-964.73743475,0.00027397,7]
[343952535,1733130643353,-1006.39256525,0.00027397,7]
[343952536,1733130643362,-277.59818053,0.00027397,7]
[343952537,1733130643371,-500.0,0.00027397,7]
[343952538,1733130643383,-500.0,0.00027397,7]
[343952539,1733130643392,-500.0,0.00027397,7]
[343952540,1733130643402,-329.31970515,0.00027397,7]
[343952554,1733130646379,-170.68029485,0.00027397,7]
[343952555,1733130646389,-403.68136712,0.00027397,7]
[343952556,1733130646400,-506.17613067,0.00027397,7]
[343952557,1733130646409,-500.0,0.00027397,7]
[343952558,1733130646418,-500.0,0.00027397,7]
[343952559,1733130646428,-500.0,0.00027397,7]
[343952560,1733130646441,-434.85346107,0.00027397,7]
[343952561,1733130646450,-500.0,0.00027397,7]
[343952563,1733130646459,-4274.14719533,0.00027397,7]
[343952564,1733130646471,-5763.07280467,0.00027397,7]
[343952565,1733130646480,-500.0,0.00027397,7]
[343952566,1733130646489,-600.86,0.00027397,7]
[343952567,1733130646498,-500.0,0.00027397,7]
[343952569,1733130646507,-897.31,0.00027397,7]
[343952570,1733130646516,-500.0,0.00027397,7]
[343952571,1733130646525,-500.0,0.00027397,7]
[343952572,1733130646535,-500.0,0.00027397,7]
[343952573,1733130646544,-525.01464265,0.00027397,7]
[343952574,1733130646554,-500.0,0.00027397,7]
[343952575,1733130646563,-969.1,0.00027397,7]
[343952576,1733130646573,-500.0,0.00027397,7]
[343952577,1733130646582,-500.0,0.00027397,7]
[343952578,1733130646592,-500.0,0.00027397,7]
[343952579,1733130646601,-500.0,0.00027397,7]
[343952580,1733130646611,-500.0,0.00027397,7]
[343952581,1733130646620,-500.0,0.00027397,7]
[343952582,1733130646630,-500.0,0.00027397,7]
[343952583,1733130646639,-500.0,0.00027397,7]
[343952584,1733130646648,-162.97849508,0.00027397,2]
[343952585,1733130646658,-152.0,0.00027599,2]
[343952586,1733130646669,-151.0,0.00027671,7]
[343952587,1733130646679,-151.0,0.00027671,7]
[343952588,1733130646693,-500.0,0.00027671,7]
[343952589,1733130646703,-500.0,0.00027671,7]
[343952590,1733130646713,-500.0,0.00027671,7]
[343952591,1733130646723,-500.0,0.00027671,7]
[343952592,1733130646732,-424.89156663,0.00027671,7]
[343952593,1733130646742,-226.37229097,0.00027671,7]
[343952601,1733130675568,166.754928,0.00013973,2]
[343952627,1733131282896,166.251901,0.00013973,2]
[343952629,1733131436837,215.98,0.00022,30]
[343952702,1733131832376,-269.66243768,0.00023999,2]
[343952795,1733131840225,-30.33756232,0.00023999,2]
[343952796,1733131840235,-300.0,0.00023999,2]
[343952797,1733131840244,-3289.86243768,0.00024,3]
[343952814,1733131843268,-13824.70604838,0.00024,3]
[343952817,1733131843355,-2892.69524901,0.00024,3]
[343952818,1733131843367,-9950.66052352,0.00024,3]
[343952819,1733131843377,-4390.68077164,0.00025,3]
[343952874,1733132063251,166.251901,0.00013973,2]
[343952879,1733132839576,166.301664,0.00013973,2]
[343952968,1733133038559,-1870.995053,0.00023517,2]
[343953015,1733133043716,-3213.0747301,0.00023517,2]
[343953016,1733133043726,-300.0,0.00023999,2]
[343953017,1733133043736,-300.0,0.00023999,2]
[343953018,1733133043745,-167.91287049,0.00024,2]
[343953019,1733133043756,-9734.50013227,0.00024,2]
[343953020,1733133043765,-270.0,0.00024499,2]
[343953021,1733133043775,-158.31256959,0.00024499,2]
[343953022,1733133043785,-204.09952414,0.00024499,2]
[343953023,1733133043795,-508.21194281,0.00024499,2]
[343953024,1733133043804,-425.71323192,0.00024499,2]
[343953025,1733133043814,-270.73060388,0.00024499,2]
[343953026,1733133043823,-6353.73939866,0.000245,2]
[343953027,1733133043834,-6377.94078399,0.000245,2]
[343953028,1733133043846,-4060.43029377,0.000245,2]
[343953029,1733133043855,-41519.17325494,0.000245,5]
[343953044,1733133046601,-162.0,0.00022,2]
[343953045,1733133046611,-162.0,0.00022192,2]
[343953046,1733133046621,-6890.8,0.000245,5]
[343953166,1733133460849,166.301664,0.00013973,2]
[343953176,1733133666750,2859.86106962,0.00016001,2]
[343953274,1733134232751,-213.581596,0.00023232,2]
[343953276,1733134232760,-1035.33587262,0.000244,2]
[343953277,1733134232770,-300.0,0.00024498,2]
[343953279,1733134232779,-300.0,0.00024498,2]
[343953281,1733134232788,-223.65010616,0.00024499,2]
[343953283,1733134232797,-478.35971135,0.00024499,2]
[343953284,1733134232807,-649.61093296,0.00024499,2]
[343953285,1733134232816,-500.0,0.00024499,2]
[343953286,1733134232825,-167.21551109,0.00024499,2]
[343953287,1733134232834,-463.20434518,0.00024499,2]
[343953288,1733134232843,-335.66723007,0.00024499,2]
[343953289,1733134232853,-30843.08481021,0.000245,2]
[343953291,1733134232864,-2855.75938046,0.000245,2]
[343953293,1733134232875,-26165.01633631,0.000245,2]
[343953310,1733134238911,-5642.38673767,0.000245,2]
[343953311,1733134238921,-19761.13687046,0.000245,5]
[343953312,1733134238933,-706.40587827,0.000245,5]
[343953313,1733134239032,-12123.07307551,0.000245,5]
[343953314,1733134239044,-26627.6310555,0.000245,5]
[343953339,1733134243804,-5091.9037,0.000245,5]
[343953340,1733134243815,-2104.0039253,0.000245,5]
[343953346,1733134246793,-22717.666895,0.000245,5]
[343953363,1733134335444,166.301664,0.00013973,2]
[343953394,1733135141318,166.301664,0.00013973,2]
[343953434,1733135300936,396.16554743,0.000125,2]
[343953479,1733135432043,-167.562471,0.00023389,2]
[343953480,1733135432053,-116.7911477,0.00023574,2]
[343953481,1733135432095,-999.9217075,0.00023574,2]
[343953482,1733135432105,-1131.53402821,0.00023599,2]
[343953497,1733135437977,-1105.61462089,0.00023599,2]
[343953498,1733135437987,-905.91888856,0.000244,2]
[343953499,1733135437997,-248.62425026,0.00024473,2]
[343953500,1733135438007,-300.0,0.00024497,2]
[343953501,1733135438015,-300.0,0.00024497,2]
[343953502,1733135438024,-2558.0,0.00024497,2]
[343953503,1733135438035,-5470.57871498,0.00024499,2]
[343953504,1733135438044,-42535.11534502,0.000245,5]
[343953505,1733135438053,-4998.25087488,0.000245,2]
[343953506,1733135438062,-4998.25087488,0.000246,2]
[343953507,1733135438071,-4998.25087488,0.000247,2]
[343953508,1733135438079,-3581.39555525,0.000248,2]
[343953548,1733135439934,-1416.85531963,0.000248,2]
[343953549,1733135439945,-152.0,0.00024868,2]
[343953550,1733135439955,-171.72152295,0.000249,2]
[343953551,1733135439963,-169.20397942,0.0002495,8]
[343953552,1733135439973,-501.25817395,0.00024973,2]
[343953553,1733135439982,-500.0,0.00024973,2]
[343953554,1733135439992,-380.70253596,0.00024973,2]
[343953555,1733135440002,-564.51024697,0.00024973,2]
[343953556,1733135440011,-503.50276049,0.00024973,2]
[343953557,1733135440020,-500.0,0.00024973,2]
[343953558,1733135440029,-501.34088665,0.00024973,2]
[343953559,1733135440044,-500.0,0.00024973,2]
[343953560,1733135440053,-500.24438414,0.00024973,2]
[343953561,1733135440063,-500.0,0.00024973,2]
[343953562,1733135440072,-500.49539766,0.00024973,2]
[343953563,1733135440081,-500.8209716,0.00024973,2]
[343953564,1733135440091,-200.38874753,0.00024973,2]
[343953565,1733135440100,-259.44349682,0.00024973,2]
[343953566,1733135440110,-1573.39,0.00024989,10]
[343953567,1733135440119,-3000.34,0.00024989,10]
[343953568,1733135440129,-234.86121353,0.00024999,2]
[343953569,1733135440139,-500.10016579,0.00024999,2]
[343953570,1733135440148,-22.24005407,0.00024999,2]
[343953587,1733135442855,-154.09447686,0.00024999,2]
[343953588,1733135442867,-189.59000419,0.00024999,2]
[343953589,1733135442877,-44866.47695095,0.00024999,2]
[343953590,1733135442983,-36631.55666399,0.00024999,2]
[343953591,1733135442995,-2709.01946691,0.00024999,2]
[343953592,1733135443005,-609.31922836,0.00025,3]
[343953593,1733135443015,-705.72333311,0.00025,7]
[343953608,1733135445999,-3418.2484746,0.00025,7]
[343953609,1733135446008,-658.273865,0.00025,2]
[343953610,1733135446047,-2201.51273837,0.00025,2]
[343953611,1733135446059,-98.48722163,0.00025,5]
[343953618,1733135489341,2135.77815383,0.00022,30]
[343953638,1733136425105,164.0,0.00026,60]
[343953641,1733136449484,166.372783,0.00013973,2]
[343953707,1733136634584,-253.73474168,0.00023385,2]
[343953708,1733136634594,-853.2656632,0.00023761,2]
[343953709,1733136634607,-300.0,0.00023783,2]
[343953710,1733136634618,-300.0,0.00023783,2]
[343953711,1733136634629,-24900.0,0.00023784,2]
[343953712,1733136634642,-6721.5028154,0.00024448,2]
[343953714,1733136634653,-1175.61060509,0.00024454,2]
[343953716,1733136634663,-159.93673708,0.00024554,2]
[343953718,1733136634673,-6721.50281541,0.00024805,2]
[343953720,1733136634683,-10000.0,0.00024828,2]
[343953722,1733136634692,-3023.84544224,0.000249,2]
[343953724,1733136634702,-152.62,0.0002499,3]
[343953726,1733136634711,-457.9,0.0002499,3]
[343953728,1733136634721,-151.0,0.00024999,7]
[343953730,1733136634730,-151.0,0.00024999,7]
[343953732,1733136634739,-576.88783236,0.00024999,2]
[343953734,1733136634749,-500.0,0.00024999,2]
[343953736,1733136634759,-171.98516761,0.00024999,2]
[343953738,1733136634768,-500.0,0.00024999,2]
[343953740,1733136634778,-500.0,0.00024999,2]
[343953742,1733136634788,-500.0,0.00024999,2]
[343953744,1733136634797,-500.0,0.00024999,2]
[343953745,1733136634807,-308.02376959,0.00024999,2]
[343953746,1733136634817,-257.37139,0.00024999,7]
[343953747,1733136634826,-257.37139,0.00024999,7]
[343953748,1733136634836,-151.0,0.00024999,7]
[343953749,1733136634845,-154.77306115,0.00024999,2]
[343953750,1733136634854,-14242.85277837,0.00025,5]
[343953751,1733136634863,-175.3677137,0.00025,5]
[343953752,1733136634873,-79490.56,0.00025,5]
[343953753,1733136634882,-151.0,0.00025,7]
[343953754,1733136634892,-151.0,0.00025,7]
[343953755,1733136634901,-172.3426,0.00025,7]
[343953756,1733136634910,-172.3426,0.00025,7]
[343953757,1733136634920,-151.0,0.00025,7]
[343953758,1733136634930,-151.0,0.00025,2]
[343953759,1733136634939,-151.0,0.00025,7]
[343953760,1733136634948,-151.0,0.00025,7]
[343953761,1733136634958,-151.0,0.00025,7]
[343953762,1733136634967,-151.0,0.00025,7]
[343953763,1733136634977,-257.37139,0.00025,7]
[343953764,1733136634986,-257.37139,0.00025,7]
[343953765,1733136634995,-257.37139,0.00025,7]
[343953766,1733136635004,-257.37139,0.00025,7]
[343953767,1733136635014,-151.0,0.00025,7]
[343953768,1733136635023,-151.0,0.00025,7]
[343953769,1733136635033,-301.090537,0.00025,7]
[343953770,1733136635042,-301.090537,0.00025,7]
[343953771,1733136635052,-659.788141,0.00025,7]
[343953772,1733136635061,-659.788141,0.00025,7]
[343953773,1733136635071,-174.354716,0.00025,7]
[343953774,1733136635080,-174.354716,0.00025,7]
[343953775,1733136635091,-742.198625,0.00025,7]
[343953776,1733136635101,-742.198625,0.00025,7]
[343953777,1733136635111,-151.0,0.00025,7]
[343953778,1733136635120,-151.0,0.00025,7]
[343953779,1733136635130,-151.0,0.00025,7]
[343953780,1733136635140,-151.0,0.00025,7]
[343953781,1733136635150,-152.442086,0.00025,7]
[343953782,1733136635159,-152.442086,0.00025,7]
[343953783,1733136635169,-151.0,0.00025,7]
[343953784,1733136635179,-151.0,0.00025,7]
[343953785,1733136635189,-276.190362,0.00025,7]
[343953786,1733136635199,-276.190362,0.00025,7]
[343953787,1733136635208,-151.0,0.00025,7]
[343953788,1733136635218,-6572.45772388,0.0002509,2]
[343953789,1733136635228,-257.37139,0.0002509,7]
[343953790,1733136635239,-257.37139,0.0002509,7]
[343953791,1733136635248,-151.0,0.0002509,7]
[343953792,1733136635258,-172.3,0.00025247,4]
[343953793,1733136635267,-1175.61060509,0.00025293,2]
[343953794,1733136635277,-500.0,0.000253,2]
[343953795,1733136635287,-500.0,0.000253,2]
[343953796,1733136635296,-151.0,0.00025521,7]
[343953797,1733136635307,-172.3426,0.00025521,7]
[343953798,1733136635316,-172.3426,0.00025521,7]
[343953799,1733136635326,-245.665668,0.00025521,7]
[343953800,1733136635336,-151.0,0.00025521,2]
[343953801,1733136635346,-151.0,0.00025521,7]
[343953802,1733136635356,-156.598087,0.00025521,7]
[343953803,1733136635365,-301.090537,0.00025521,7]
[343953804,1733136635374,-301.090537,0.00025521,7]
[343953805,1733136635384,-659.788141,0.00025521,7]
[343953806,1733136635393,-659.788141,0.00025521,7]
[343953807,1733136635402,-174.354716,0.00025521,7]
[343953808,1733136635411,-174.354716,0.00025521,7]
[343953809,1733136635420,-742.198625,0.00025521,7]
[343953810,1733136635429,-742.198625,0.00025521,7]
[343953811,1733136635438,-151.0,0.00025521,7]
[343953812,1733136635447,-151.0,0.00025521,7]
[343953813,1733136635457,-152.442086,0.00025521,7]
[343953814,1733136635466,-152.442086,0.00025521,7]
[343953815,1733136635476,-151.0,0.00025521,7]
[343953816,1733136635485,-151.0,0.00025521,7]
[343953817,1733136635495,-276.190362,0.00025521,7]
[343953818,1733136635504,-276.190362,0.00025521,7]
[343953819,1733136635513,-3023.84544222,0.000257,2]
[343953820,1733136635522,-206.2512799,0.00025702,2]
[343953821,1733136635532,-227.72504609,0.00025702,2]
[343953822,1733136635542,-578.21342633,0.00025702,2]
[343953823,1733136635551,-45752.35198315,0.00025704,2]
[343953824,1733136635560,-151.0,0.00025705,7]
[343953825,1733136635570,-151.0,0.00025705,7]
[343953826,1733136635579,-151.0,0.00025705,7]
[343953827,1733136635589,-153.793201,0.00025705,7]
[343953828,1733136635598,-276.190362,0.00025705,7]
[343953829,1733136635608,-276.190362,0.00025705,7]
[343953830,1733136635617,-230.77087,0.00025705,7]
[343953831,1733136635627,-172.3,0.00025718,4]
[343953832,1733136635636,-260.37066608,0.00025773,2]
[343953833,1733136635646,-500.0,0.00025773,2]
[343953834,1733136635656,-262.0,0.00025773,2]
[343953835,1733136635665,-210.29689467,0.00025773,2]
[343953836,1733136635676,-500.0,0.00025773,2]
[343953837,1733136635686,-155.24683685,0.00025782,2]
[343953838,1733136635696,-420.0,0.00025797,2]
[343953839,1733136635706,-501.23695501,0.00025848,2]
[343953840,1733136635715,-1000.0,0.00025848,2]
[343953841,1733136635725,-152.442086,0.00025998,7]
[343953842,1733136635735,-152.442086,0.00025998,7]
[343953843,1733136635745,-151.0,0.00025999,7]
[343953844,1733136635756,-918.1005844,0.00026,2]
[343953845,1733136635766,-617.0,0.00026,2]
[343953846,1733136635776,-1175.61060509,0.00026132,2]
[343953847,1733136635786,-420.0,0.00026162,2]
[343953848,1733136635797,-151.0,0.00026169,7]
[343953849,1733136635807,-151.0,0.00026169,7]
[343953850,1733136635817,-172.3,0.00026189,5]
[343953851,1733136635828,-500.0,0.00026321,2]
[343953852,1733136635837,-305.24,0.0002636,3]
[343953853,1733136635847,-742.198625,0.0002636,7]
[343953854,1733136635857,-742.198625,0.0002636,7]
[343953855,1733136635867,-160.821708,0.0002636,7]
[343953856,1733136635877,-3023.84544222,0.000265,2]
[343953857,1733136635886,-257.37139,0.00026552,7]
[343953858,1733136635896,-257.37139,0.00026552,7]
[343953859,1733136635905,-151.0,0.00026552,7]
[343953860,1733136635914,-301.090537,0.00026568,7]
[343953861,1733136635923,-301.090537,0.00026568,7]
[343953862,1733136635932,-659.788141,0.00026568,7]
[343953863,1733136635941,-659.788141,0.00026568,7]
[343953864,1733136635951,-174.354716,0.00026568,7]
[343953865,1733136635960,-174.354716,0.00026568,7]
[343953866,1733136635969,-151.0,0.00026568,7]
[343953867,1733136635978,-151.0,0.00026568,7]
[343953868,1733136635988,-150.0,0.00026569,2]
[343953869,1733136635997,-531.0,0.00026569,2]
[343953870,1733136636006,-2376.0,0.00026569,2]
[343953871,1733136636016,-2173.0,0.00026569,2]
[343953872,1733136636025,-151.0,0.00026569,7]
[343953873,1733136636034,-276.190362,0.00026569,7]
[343953874,1733136636043,-276.190362,0.00026569,7]
[343953875,1733136636052,-172.3,0.0002666,5]
[343953876,1733136636062,-1175.61060509,0.00026971,2]
[343953877,1733136636071,-3186.41600773,0.00027,4]
[343953885,1733136638147,-1791.35,0.0002499,10]
[343953886,1733136638188,-708.94,0.0002499,10]
[343953887,1733136638198,-1813.58399227,0.00027,4]
[343953888,1733136638208,-151.0,0.00027,7]
[343953889,1733136638218,-172.3426,0.00027,7]
[343953890,1733136638230,-172.3426,0.00027,7]
[343953891,1733136638240,-151.0,0.00027,7]
[343953892,1733136638250,-151.0,0.00027,7]
[343953893,1733136638259,-586.622153,0.00027,7]
[343953894,1733136638269,-586.622153,0.00027,7]
[343953895,1733136638279,-151.0,0.00027,7]
[343953896,1733136638288,-152.442086,0.00027,7]
[343953897,1733136638298,-152.442086,0.00027,7]
[343953898,1733136638310,-257.37139,0.00027019,7]
[343953899,1733136638321,-257.37139,0.00027019,7]
[343953900,1733136638331,-151.0,0.00027019,7]
[343953901,1733136638340,-301.090537,0.00027019,7]
[343953902,1733136638350,-301.090537,0.00027019,7]
[343953903,1733136638359,-659.788141,0.00027019,7]
[343953904,1733136638369,-659.788141,0.00027019,7]
[343953905,1733136638378,-742.198625,0.00027019,7]
[343953906,1733136638388,-742.198625,0.00027019,7]
[343953907,1733136638398,-155.01234184,0.00027071,2]